bitfinex/quotes_ETHUSD_20240603
["timestamp","ask_amount","ask_price","bid_price","bid_amount"]
[1717435372286,0.0461443,3775.1,3774.9,1.32126577]
[1717435372485,0.66926654,3775.1,3774.9,1.32126577]
[1717435372688,0.60022102,3775.1,3774.9,1.32126577]
[1717435373294,0.0461443,3775.1,3774.9,1.32126577]
[1717435374074,0.069048,3775.0,3774.9,1.32126577]
[1717435374273,0.11488303,3775.0,3774.9,1.32126577]
[1717435374472,0.04583503,3775.0,3774.9,1.32126577]
[1717435374919,0.55407672,3775.2,3774.9,1.32126577]
[1717435375214,0.04560359,3775.0,3774.9,1.32126577]
[1717435375385,2.64888,3775.2,3774.1,0.83158]
[1717435375588,0.04564549,3775.1,3774.3,0.72]
[1717435375785,0.04564549,3775.1,3774.4,1.32126577]
[1717435376016,0.66877066,3775.1,3774.4,1.32126577]
[1717435376312,0.04564549,3775.1,3774.4,1.32126577]
[1717435377608,0.11469498,3775.1,3774.4,1.32126577]
[1717435377830,0.04564549,3775.1,3774.4,1.32126577]
[1717435378386,0.11469537,3775.1,3774.4,1.32126577]
[1717435378590,0.04564549,3775.1,3774.4,1.32126577]
[1717435379620,3.20307672,3775.0,3774.4,1.32126577]
[1717435379774,0.06905163,3774.9,3774.4,1.32126577]
[1717435379981,0.11460388,3774.9,3774.4,1.32126577]
[1717435380177,0.04555225,3774.9,3774.4,1.32126577]
[1717435383502,0.66868274,3774.9,3774.4,1.32126577]
[1717435383692,0.59962897,3774.9,3774.4,1.32126577]
[1717435383893,0.04555225,3774.9,3774.4,1.32126577]
[1717435384201,0.04555225,3774.9,3773.8,2.64979]
[1717435384202,0.72,3774.7,3773.8,2.64979]
[1717435384420,0.04453953,3774.6,3773.9,1.32126577]
[1717435387119,3.0108,3774.5,3773.9,1.32126577]
[1717435387364,2.33521906,3774.5,3773.9,1.32126577]
[1717435387703,0.72,3774.3,3773.9,1.32126577]
[1717435388004,0.04429331,3774.2,3773.9,1.32126577]
[1717435388440,1.27407672,3774.4,3773.9,1.32126577]
[1717435388617,0.04425139,3774.1,3773.9,1.32126577]
[1717435388942,0.72,3774.4,3773.9,1.32126577]
[1717435389148,0.04420947,3774.0,3773.9,1.32126577]
[1717435389353,0.72,3774.4,3773.9,1.32126577]
[1717435389511,0.04420947,3774.0,3773.9,1.32126577]
[1717435389713,0.72,3774.4,3773.9,1.32126577]
[1717435390020,2.64951,3774.3,3773.4,2.65006]
[1717435390220,0.04429331,3774.2,3773.5,1.32126577]
[1717435390429,0.04429331,3774.2,3773.6,0.72]
[1717435390631,2.64963,3774.1,3773.6,2.04126577]
[1717435390827,0.04379742,3774.0,3773.6,2.04126577]
[1717435393443,0.04379742,3774.0,3773.7,1.32126577]
[1717435393650,2.14451302,3774.8,3774.5,5.43635]
[1717435393834,1.10919925,3775.2,3774.9,2.787]
[1717435393835,0.55407672,3775.2,3774.9,2.787]
[1717435394047,2.42201626,3776.2,3775.6,2.64858]
[1717435394242,0.55407672,3776.4,3775.6,2.64858]
[1717435394480,1.12652466,3776.4,3775.6,2.64858]
[1717435394764,0.55407672,3776.4,3775.7,0.72]
[1717435394976,3.98697996,3776.6,3775.8,1.32126577]
[1717435394977,0.55407672,3776.5,3775.8,1.32126577]
[1717435395120,1.27295939,3776.5,3775.8,1.32126577]
[1717435395322,0.55407672,3776.4,3775.8,1.32126577]
[1717435395523,2.64812,3776.3,3775.2,2.64885]
[1717435395854,3.20219672,3776.3,3775.3,1.32126577]
[1717435396046,0.55407672,3776.1,3775.3,1.32126577]
[1717435396253,0.40337767,3776.0,3775.3,1.32126577]
[1717435396453,0.55407672,3775.9,3775.3,1.32126577]
[1717435396635,0.95745439,3776.0,3775.3,1.32126577]
[1717435397925,0.40337767,3776.0,3775.3,1.32126577]
[1717435398263,0.95745439,3776.0,3775.3,1.32126577]
[1717435399283,0.55407672,3776.0,3775.3,1.32126577]
[1717435399436,0.55407672,3776.2,3775.4,2.64871]
[1717435399631,3.20219672,3776.3,3775.5,1.32126577]
[1717435399851,0.55407672,3776.2,3775.5,1.32126577]
[1717435400036,0.55407672,3776.1,3775.5,1.32126577]
[1717435400236,3.47969996,3776.3,3775.5,1.32126577]
[1717435400237,0.55407672,3776.2,3775.5,1.32126577]
[1717435400460,3.20219672,3776.3,3775.5,1.32126577]
[1717435400658,0.55407672,3776.2,3775.5,1.32126577]
[1717435400881,3.20219672,3776.3,3775.5,1.32126577]
[1717435401473,0.58740124,3776.2,3775.5,1.32126577]
[1717435402842,3.20232672,3776.1,3775.5,1.32126577]
[1717435403198,3.23611497,3776.1,3775.5,1.32126577]
[1717435403392,0.55407672,3776.0,3775.5,1.32126577]
[1717435403742,0.58779702,3775.9,3775.5,1.32126577]
[1717435403937,0.0337203,3775.9,3775.5,1.32126577]
[1717435405081,0.03367842,3775.8,3775.5,1.32126577]
[1717435405267,0.55407672,3776.0,3775.5,1.32126577]
[1717435405474,0.03363653,3775.7,3775.5,1.32126577]
[1717435405680,0.55407672,3776.0,3775.5,1.32126577]
[1717435405894,0.03359465,3775.6,3775.5,1.32126577]
[1717435406063,0.55407672,3776.0,3775.5,1.32126577]
[1717435406242,0.03359465,3775.6,3775.5,1.32126577]
[1717435406444,2.64825,3776.1,3775.5,1.32126577]
[1717435406445,0.55407672,3775.9,3775.5,1.32126577]
[1717435406645,0.03367842,3775.8,3775.5,1.32126577]
[1717435407362,0.55407672,3775.9,3775.5,1.32126577]
[1717435407574,0.03363653,3775.7,3775.5,1.32126577]
[1717435407772,0.55407672,3775.9,3775.5,1.32126577]
[1717435407972,0.03359465,3775.6,3775.5,1.32126577]
[1717435408450,0.55407672,3775.9,3775.5,1.32126577]
[1717435408651,3.47982996,3776.1,3775.5,1.32126577]
[1717435408652,0.03359465,3775.6,3775.5,1.32126577]
[1717435408990,0.55407672,3775.8,3775.5,1.32126577]
[1717435409192,0.03359465,3775.6,3775.5,1.32126577]
[1717435409393,0.55407672,3775.7,3775.5,1.32126577]
[1717435409548,0.03359465,3775.6,3775.5,1.32126577]
[1717435409751,0.03359465,3775.6,3775.0,2.64897]
[1717435409949,0.58767137,3775.6,3775.1,1.32126577]
[1717435410259,0.55407672,3775.5,3775.1,1.32126577]
[1717435410472,0.58762948,3775.5,3775.1,1.32126577]
[1717435412884,1.10531735,3775.5,3775.1,1.32126577]
[1717435413191,0.55407672,3775.3,3774.6,5.06728724]
[1717435413409,0.55407672,3775.0,3774.7,1.32126577]
[1717435413884,0.58728019,3774.9,3774.7,1.32126577]
[1717435414086,0.03320347,3774.9,3774.7,1.32126577]
[1717435416783,0.55407672,3775.1,3774.7,1.32126577]
[1717435416989,0.03316156,3774.8,3774.7,1.32126577]
[1717435417663,0.55407672,3775.0,3774.8,2.64914]
[1717435417861,2.64869,3775.5,3774.8,2.64914]
[1717435417862,0.55407672,3775.3,3774.9,1.32126577]
[1717435419870,0.55407672,3775.2,3774.9,1.32126577]
[1717435420468,0.03317611,3775.1,3774.9,1.32126577]
[1717435422313,0.03317611,3775.1,3774.9,1.75801231]
[1717435422674,0.55407672,3775.3,3774.9,1.75801231]
[1717435423069,0.55407672,3775.3,3774.9,4.01371231]
[1717435423373,0.0332683,3775.2,3774.9,4.01371231]
[1717435423574,0.55407672,3775.3,3774.9,4.01371231]
[1717435423773,0.03322641,3775.1,3775.0,0.66628523]
[1717435424015,0.55407672,3775.3,3775.0,1.987551]
[1717435424316,0.55407672,3775.3,3775.1,1.32126577]
[1717435425510,0.55407672,3775.4,3775.1,3.97018577]
[1717435426072,0.55407672,3775.4,3775.3,2.64879]
[1717435426274,0.55407672,3775.5,3775.3,4.77005577]
[1717435426487,0.55407672,3775.6,3775.4,1.32126577]
[1717435426932,0.55407672,3775.7,3775.4,1.32126577]
[1717435427099,0.55407672,3775.7,3775.5,0.47700558]
[1717435427293,0.55407672,3775.7,3775.6,1.32126577]
[1717435427519,0.55407672,3775.8,3775.6,1.32126577]
[1717435431135,0.55407672,3775.7,3775.6,1.32126577]
[1717435431931,0.55407672,3775.7,3775.1,0.73289175]
[1717435432137,0.55407672,3775.6,3775.2,1.32126577]
[1717435432289,7.32,3776.3,3775.2,1.32126577]
[1717435432290,0.55407672,3775.5,3775.2,1.32126577]
[1717435432498,0.55407672,3775.4,3775.2,1.32126577]
[1717435432725,0.55407672,3775.3,3775.2,1.32126577]
[1717435432898,0.83157996,3775.4,3775.2,1.32126577]
[1717435434235,0.83157996,3775.3,3775.2,1.32126577]
[1717435435326,0.83159185,3775.3,3775.2,1.32126577]
[1717435435504,0.86382159,3775.3,3775.2,1.32126577]
[1717435435901,0.33975736,3775.3,3775.2,1.32126577]
[1717435437346,1.44895661,3775.3,3775.2,1.32126577]
[1717435437957,0.33975736,3775.3,3775.2,1.32126577]
[1717435438515,1.7250108,3775.3,3775.2,1.32126577]
[1717435439109,0.33975736,3775.3,3775.2,1.32126577]
[1717435439730,0.33975736,3775.3,3774.5,2.64931]
[1717435439940,1.11072304,3774.8,3774.6,1.32126577]
[1717435440121,0.30752762,3774.7,3774.6,1.32126577]
[1717435440340,0.33950595,3774.7,3774.6,1.32126577]
[1717435440910,1.45022899,3774.7,3774.6,1.32126577]
[1717435441679,0.33950595,3774.7,3774.6,1.32126577]
[1717435443010,1.45028946,3774.7,3774.6,1.32126577]
[1717435444169,0.33950595,3774.7,3774.6,1.32126577]
[1717435444314,1.44985766,3774.7,3774.6,1.32126577]
[1717435445562,0.33950595,3774.7,3774.6,1.32126577]
[1717435447070,1.44985766,3774.7,3774.6,1.32126577]
[1717435447445,0.33950595,3774.7,3774.6,1.32126577]
[1717435449164,1.44985766,3774.7,3774.6,1.32126577]
[1717435449381,0.33950595,3774.7,3774.6,1.32126577]
[1717435452396,1.44985766,3774.7,3774.6,1.32126577]
[1717435454392,0.33950595,3774.7,3774.6,1.32126577]
[1717435455490,1.44985766,3774.7,3774.6,1.32126577]
[1717435455806,0.33950595,3774.7,3774.6,1.32126577]
[1717435455993,0.86460386,3774.7,3774.6,1.32126577]
[1717435456195,0.86460386,3774.7,3774.6,1.79843135]
[1717435456929,0.03197833,3774.7,3774.6,1.79843135]
[1717435457135,0.83262553,3774.8,3774.6,1.79843135]
[1717435457482,0.0303473,3774.7,3774.6,1.79843135]
[1717435457920,0.83262553,3774.8,3774.6,1.79843135]
[1717435458304,0.0303473,3774.7,3774.6,4.24523135]
[1717435458636,0.55515076,3774.7,3774.6,5.04623135]
[1717435458813,0.58557747,3774.7,3774.6,5.04623135]
[1717435459013,0.03042671,3774.7,3774.6,5.04623135]
[1717435459211,0.03042671,3774.7,3774.6,7.69551135]
[1717435459415,0.55515076,3774.9,3774.6,7.69551135]
[1717435459628,0.55515076,3775.0,3774.9,2.64907]
[1717435459932,0.55515076,3775.1,3774.9,4.77133577]
[1717435460123,0.83262553,3775.2,3775.1,2.64893]
[1717435460311,0.83262553,3775.2,3775.1,4.44731535]
[1717435460546,0.30700907,3775.2,3775.1,4.44731535]
[1717435460992,0.83260367,3775.2,3775.1,4.44731535]
[1717435462916,0.83260367,3775.3,3775.1,4.44731535]
[1717435463087,0.83260367,3775.3,3775.2,1.32126577]
[1717435463282,0.83260367,3775.4,3775.3,2.64879]
[1717435463501,0.83260367,3775.4,3775.3,4.77105577]
[1717435463718,0.83260367,3775.5,3775.3,4.77105577]
[1717435463914,0.83260367,3775.5,3775.4,1.32126577]
[1717435465005,1.38712003,3775.9,3775.5,2.64865]
[1717435465006,0.83260367,3775.6,3775.5,2.64865]
[1717435465209,0.83260367,3775.6,3775.5,5.5499145]
[1717435465415,0.83260367,3775.7,3775.5,5.5499145]
[1717435465601,0.83260367,3775.7,3775.6,2.12226577]
[1717435467134,0.83260367,3775.7,3775.6,1.32126577]
[1717435467300,0.83260367,3775.7,3775.6,2.12226577]
[1717435468546,0.83260367,3775.8,3775.6,2.12226577]
[1717435468718,0.83260367,3775.8,3775.7,0.801]
[1717435468920,0.83260367,3775.8,3775.7,2.12226577]
[1717435469126,0.83260367,3775.8,3775.7,1.32126577]
[1717435469418,0.83260367,3775.8,3775.7,2.12226577]
[1717435470211,0.83260367,3775.8,3775.7,2.59935735]
[1717435470443,3.98254404,3776.5,3775.7,2.59935735]
[1717435470444,0.83260367,3775.9,3775.8,2.64844]
[1717435470646,0.83260367,3776.0,3775.8,7.18880577]
[1717435470948,0.55458256,3776.0,3775.9,2.12226577]
[1717435472555,2.64839,3775.9,3775.0,2.64893]
[1717435472737,2.64839,3775.9,3774.4,2.2617]
[1717435472738,0.801,3775.5,3775.1,1.32126577]
[1717435472906,1.11035171,3775.3,3775.1,1.32126577]
[1717435473106,0.30676779,3775.2,3775.1,1.32126577]
[1717435473614,3.8234195,3775.2,3775.1,1.32126577]
[1717435473953,2.71306779,3775.2,3775.1,1.32126577]
[1717435474256,2.71306779,3775.2,3774.6,2.64922]
[1717435474403,0.83186599,3774.9,3774.7,1.32126577]
[1717435475905,0.55440293,3774.9,3774.7,1.32126577]
[1717435476860,0.55440293,3775.0,3774.7,1.32126577]
[1717435477041,0.55440293,3775.0,3774.9,2.64907]
[1717435477248,0.55440293,3775.0,3774.9,3.97033577]
[1717435477430,0.55440293,3775.1,3774.9,3.97033577]
[1717435477628,0.55440293,3775.1,3775.0,1.32126577]
[1717435478228,0.55440293,3775.1,3775.0,2.00699421]
[1717435478441,0.55440293,3775.2,3775.0,2.00699421]
[1717435478817,0.55440293,3775.1,3775.0,2.00699421]
[1717435480056,0.83186599,3775.2,3775.0,2.00699421]
[1717435480257,0.83186599,3775.2,3775.0,1.32126577]
[1717435480630,0.0266032,3775.1,3775.0,1.32126577]
[1717435481535,0.58096324,3775.1,3775.0,1.32126577]
[1717435481959,0.0266032,3775.1,3775.0,1.32126577]
[1717435482327,0.58096706,3775.1,3775.0,1.32126577]
[1717435482628,0.58096706,3775.1,3775.0,1.71829935]
[1717435484463,0.0266032,3775.1,3775.0,5.95529935]
[1717435484839,0.55436386,3775.4,3775.1,2.64892]
[1717435485040,0.55436386,3775.4,3775.3,2.64879]
[1717435485240,0.55436386,3775.5,3775.3,4.8304647]
[1717435485441,0.55436386,3775.6,3775.5,2.64865]
[1717435485655,0.55436386,3775.6,3775.5,3.96991577]
[1717435486324,0.83186599,3775.7,3775.5,3.96991577]
[1717435486527,0.83186599,3775.7,3775.6,1.80429824]
[1717435486777,0.83155563,3775.7,3775.6,1.32126577]
[1717435487683,0.83155563,3775.8,3775.6,1.32126577]
[1717435487902,0.55439562,3775.9,3775.7,3.96977577]
[1717435488389,0.55439562,3776.0,3775.7,3.96977577]
[1717435489535,0.55439562,3776.2,3776.1,2.64823]
[1717435489740,0.55439562,3776.2,3776.1,3.96949577]
[1717435489945,0.55439562,3776.3,3776.1,3.96949577]
[1717435490142,0.55439562,3776.3,3776.2,1.32126577]
[1717435490333,0.83155563,3776.4,3776.2,1.32126577]
[1717435490687,0.55425805,3776.3,3776.2,1.32126577]
[1717435492361,0.55425805,3776.4,3776.2,1.32126577]
[1717435492972,0.55425805,3776.3,3776.2,1.32126577]
[1717435493934,0.83155563,3776.4,3776.2,1.32126577]
[1717435495437,0.83155563,3776.3,3776.2,1.32126577]
[1717435495637,0.8573739,3776.3,3776.2,1.32126577]
[1717435496360,0.02581827,3776.3,3776.2,1.32126577]
[1717435496974,0.8573739,3776.3,3776.2,1.32126577]
[1717435500134,0.33062314,3776.3,3776.2,1.32126577]
[1717435500340,2.97871314,3776.3,3775.3,6.50915893]
[1717435500569,0.55426389,3775.9,3775.4,2.65227739]
[1717435500783,0.57980119,3775.8,3775.4,2.65227739]
[1717435501255,0.57980119,3775.8,3775.4,1.32126577]
[1717435501456,0.55426389,3775.6,3775.4,1.32126577]
[1717435501655,0.55426389,3775.5,3775.4,1.32126577]
[1717435501875,0.02541164,3775.5,3775.4,1.32126577]
[1717435502207,0.85680747,3775.5,3775.4,1.32126577]
[1717435502506,0.33043477,3775.5,3775.4,1.32126577]
[1717435503063,2.64873,3775.4,3774.6,2.64928]
[1717435503278,0.55451547,3775.1,3774.7,1.32126577]
[1717435503609,0.57943658,3775.0,3774.7,1.32126577]
[1717435503810,0.55451547,3774.9,3774.7,1.32126577]
[1717435504102,0.0248373,3774.8,3774.7,1.32126577]
[1717435504303,0.57935277,3774.8,3774.7,1.32126577]
[1717435504602,0.0248373,3774.8,3774.7,1.32126577]
[1717435505562,0.57935277,3774.8,3774.7,1.32126577]
[1717435506192,0.0248373,3774.8,3774.7,1.32126577]
[1717435506466,0.57935277,3774.8,3774.7,1.32126577]
[1717435506896,0.8566105,3774.8,3774.7,1.32126577]
[1717435507092,0.0248373,3774.8,3774.7,1.32126577]
[1717435507486,0.8566105,3774.8,3774.7,1.32126577]
[1717435508604,0.0248373,3774.8,3774.7,1.32126577]
[1717435509875,3.68112488,3774.8,3773.8,2.64982]
[1717435510188,0.55401563,3774.4,3773.9,1.32126577]
[1717435510402,0.55401563,3774.2,3773.9,1.32126577]
[1717435510710,0.02435839,3774.1,3773.9,1.71837435]
[1717435511100,0.55401563,3774.3,3773.9,1.71837435]
[1717435511268,0.0243323,3774.0,3773.9,1.32126577]
[1717435511472,0.55401563,3774.3,3773.9,1.32126577]
[1717435511702,0.0243323,3774.0,3773.9,1.32126577]
[1717435511907,0.55401563,3774.3,3773.9,1.32126577]
[1717435511908,0.55401563,3774.2,3773.9,1.32126577]
[1717435512129,0.0243323,3774.0,3773.9,1.32126577]
[1717435512720,3.31902344,3774.3,3773.9,1.32126577]
[1717435512721,0.55401563,3774.1,3773.9,1.32126577]
[1717435512868,0.02365069,3774.0,3773.9,1.32126577]
[1717435513415,0.55401563,3774.2,3773.9,1.32126577]
[1717435513599,0.02369261,3774.1,3773.9,1.32126577]
[1717435514421,0.55401563,3774.3,3773.9,1.32126577]
[1717435514704,0.02367613,3774.2,3773.9,1.32126577]
[1717435516574,0.55401563,3774.4,3773.9,1.32126577]
[1717435516808,0.02352366,3774.3,3773.9,1.32126577]
[1717435520985,3.20338563,3774.5,3773.9,1.32126577]
[1717435521186,0.02344732,3774.4,3773.9,1.32126577]
[1717435524425,0.02344732,3774.4,3773.9,1.71838335]
[1717435526629,0.02344732,3774.4,3773.9,1.32126577]
[1717435527128,2.64953,3774.3,3773.9,1.32126577]
[1717435527429,0.02317089,3774.2,3773.9,1.32126577]
[1717435527586,3.20354563,3774.3,3773.9,1.32126577]
[1717435528227,2.64953,3774.3,3773.9,1.32126577]
[1717435528589,3.20354563,3774.3,3773.9,1.32126577]
[1717435529089,2.64953,3774.3,3773.9,1.32126577]
[1717435529284,2.64953,3774.3,3773.3,5.09364]
[1717435529285,3.4376852,3774.3,3773.3,5.09364]
[1717435529489,2.64972,3774.0,3773.4,1.32126577]
[1717435529736,4.94032,3774.0,3773.4,1.32126577]
[1717435532229,2.64972,3774.0,3773.4,1.32126577]
[1717435532730,7.28578859,3774.4,3773.4,1.32126577]
[1717435532898,0.57276568,3774.3,3773.4,1.32126577]
[1717435533413,2.16164864,3774.3,3773.4,1.32126577]
[1717435533944,0.57276568,3774.3,3773.4,1.32126577]
[1717435534102,2.16164797,3774.3,3773.4,1.32126577]
[1717435535685,2.16143148,3774.2,3773.4,1.32126577]
[1717435535840,0.57279106,3774.2,3773.4,1.32126577]
[1717435536138,1.58864042,3774.2,3773.6,2.3624]
[1717435536344,1.58864042,3774.3,3773.7,1.32126577]
[1717435536546,4.23813042,3774.4,3773.7,1.32126577]
[1717435536857,0.57273598,3774.3,3773.7,1.32126577]
[1717435537021,0.57273355,3774.3,3773.7,1.32126577]
[1717435537200,2.16172414,3774.3,3773.7,1.32126577]
[1717435537396,0.57273355,3774.3,3773.7,1.32126577]
[1717435537610,2.16172494,3774.3,3773.7,1.32126577]
[1717435538700,0.57274173,3774.3,3773.7,1.32126577]
[1717435539051,2.1617219,3774.3,3773.7,1.32126577]
[1717435539207,2.71573753,3774.3,3773.7,1.32126577]
[1717435541351,2.14299884,3774.2,3773.7,1.32126577]
[1717435541505,0.55401563,3774.1,3773.7,1.32126577]
[1717435542017,0.55401563,3774.0,3773.7,1.32126577]
[1717435542520,1.12677656,3774.1,3773.7,1.32126577]
[1717435542714,0.55401563,3774.1,3773.7,1.32126577]
[1717435543760,0.55401563,3774.0,3773.7,1.32126577]
[1717435544114,0.55401563,3773.9,3773.7,1.32126577]
[1717435544710,0.55401563,3773.9,3773.8,2.64984]
[1717435544922,0.55401563,3774.1,3773.9,2.3213]
[1717435545118,0.55401563,3774.1,3773.8,4.77210577]
[1717435545119,0.83102344,3774.2,3774.0,1.32126577]
[1717435545349,0.55429916,3774.1,3774.0,1.32126577]
[1717435545519,0.83102344,3774.2,3774.0,1.32126577]
[1717435545947,0.83102344,3774.1,3774.0,1.32126577]
[1717435547773,1.41550924,3774.2,3774.0,1.32126577]
[1717435547972,1.41550924,3774.1,3774.0,1.32126577]
[1717435548133,1.41550924,3774.1,3773.5,2.65005]
[1717435548333,0.55475364,3773.7,3773.6,2.12226577]
[1717435549234,0.83213046,3773.8,3773.6,2.12226577]
[1717435551172,0.83213046,3773.7,3773.6,1.32126577]
[1717435551343,2.4159,3774.0,3773.6,1.32126577]
[1717435551344,1.41538794,3773.8,3773.6,1.32126577]
[1717435551693,0.30503623,3773.7,3773.6,1.32126577]
[1717435552251,1.41538794,3773.7,3773.6,1.32126577]
[1717435553061,1.41538794,3773.7,3773.6,2.12226577]
[1717435553363,0.83329304,3773.7,3773.6,5.09009935]
[1717435554243,0.30513366,3773.7,3773.6,5.09009935]
[1717435554887,0.83320207,3773.7,3773.6,5.09009935]
[1717435555383,0.30521727,3773.7,3773.6,5.09009935]
[1717435555796,0.30521727,3773.7,3773.6,4.28909935]
[1717435556074,0.30521727,3773.7,3773.6,5.09009935]
[1717435558585,0.30521727,3773.7,3773.6,4.28909935]
[1717435558782,0.30521727,3773.7,3773.6,5.09009935]
[1717435558970,1.41556898,3773.7,3773.6,5.09009935]
[1717435560086,1.41556898,3773.7,3773.6,1.32126577]
[1717435560447,0.30521727,3773.7,3773.6,1.32126577]
[1717435561190,1.41681529,3773.7,3773.6,1.32126577]
[1717435561392,0.30521727,3773.7,3773.6,1.32126577]
[1717435561747,1.41682223,3773.7,3773.6,1.32126577]
[1717435562176,0.30521727,3773.7,3773.6,1.32126577]
[1717435562967,1.69310378,3773.7,3773.6,1.32126577]
[1717435563676,0.30521727,3773.7,3773.6,1.32126577]
[1717435563883,0.84736838,3773.7,3773.6,1.32126577]
[1717435565462,0.30521727,3773.7,3773.6,1.32126577]
[1717435566280,0.30521727,3773.7,3773.1,3.45132]
[1717435566486,1.1118864,3773.3,3773.2,1.32126577]
[1717435566682,1.41710367,3773.3,3773.2,1.32126577]
[1717435567867,0.30521727,3773.3,3773.2,1.32126577]
[1717435568072,0.30521727,3773.3,3773.2,1.79852435]
[1717435568272,1.41710367,3773.3,3773.2,1.79852435]
[1717435570010,1.6951909,3773.3,3773.2,1.32126577]
[1717435570698,1.69523891,3773.3,3773.2,1.32126577]
[1717435570880,0.30521727,3773.3,3773.2,1.32126577]
[1717435571217,1.69523891,3773.3,3773.2,1.32126577]
[1717435572477,0.30521727,3773.3,3773.2,1.32126577]
[1717435572996,1.69523891,3773.3,3773.2,1.32126577]
[1717435574902,0.30521727,3773.3,3773.2,1.32126577]
[1717435576802,0.30521727,3773.3,3772.7,2.65055]
[1717435577016,3.45102,3773.6,3772.8,1.32126577]
[1717435577017,1.11088764,3773.0,3772.8,1.32126577]
[1717435577233,0.83302878,3772.9,3772.8,1.32126577]
[1717435581106,0.83302878,3773.0,3772.8,1.32126577]
[1717435581818,0.83302878,3773.0,3772.8,2.12226577]
[1717435582127,0.83302878,3773.0,3772.9,0.801]
[1717435582330,0.83302878,3773.0,3772.9,4.94825935]
[1717435582493,0.55498036,3773.0,3772.9,4.94825935]
[1717435582690,0.55498036,3773.1,3773.0,2.65041]
[1717435583010,0.55498036,3773.3,3773.0,4.77267577]
[1717435583306,1.38745519,3773.8,3773.0,4.77267577]
[1717435583307,0.55498036,3773.6,3773.2,7.23673577]
[1717435583511,1.94391642,3773.8,3773.2,7.23673577]
[1717435583512,0.55498036,3773.8,3773.6,2.64998]
[1717435583712,0.55498036,3773.8,3773.7,4.52796577]
[1717435583912,0.55498036,3773.9,3773.8,2.64984]
[1717435584095,0.55498036,3773.9,3773.8,4.77210577]
[1717435584320,0.55498036,3774.0,3773.8,4.77210577]
[1717435584497,0.55498036,3774.0,3773.9,2.84004635]
[1717435584831,0.83302878,3774.2,3773.9,2.84004635]
[1717435584832,0.55498036,3774.1,3774.0,2.6497]
[1717435585016,0.83302878,3774.2,3774.0,4.77196577]
[1717435585017,0.55498036,3774.2,3774.0,4.77196577]
[1717435585222,0.5549465,3774.2,3774.1,1.32126577]
[1717435585605,0.5549465,3774.2,3774.1,2.12226577]
[1717435586440,0.5549465,3774.2,3774.1,1.87024041]
[1717435586623,0.5549465,3774.2,3774.1,2.67124041]
[1717435587019,0.5549465,3774.3,3774.2,2.64956]
[1717435587331,0.5549465,3774.3,3774.2,3.97082577]
[1717435587534,0.5549465,3774.3,3774.2,4.77182577]
[1717435587734,0.83302878,3774.4,3774.2,3.97082577]
[1717435588034,0.83302878,3774.3,3774.2,2.64956]
[1717435589300,0.83302878,3774.3,3774.2,3.97082577]
[1717435590036,0.83302878,3774.3,3774.1,0.801]
[1717435590240,0.83302878,3774.3,3774.1,2.12226577]
[1717435590595,0.83302878,3774.3,3774.2,1.32126577]
[1717435590796,1.38745519,3774.7,3774.2,1.32126577]
[1717435590797,0.83302878,3774.4,3774.2,1.32126577]
[1717435591047,1.38745519,3774.7,3774.2,1.32126577]
[1717435591048,0.55458343,3774.3,3774.2,1.32126577]
[1717435591227,0.55458343,3774.3,3774.2,2.12226577]
[1717435592432,0.55458343,3774.4,3774.2,2.12226577]
[1717435592935,0.83302878,3774.5,3774.2,2.12226577]
[1717435592936,0.55458343,3774.3,3774.2,2.12226577]
[1717435593899,0.55458343,3774.4,3774.2,2.12226577]
[1717435594099,0.55458343,3774.4,3774.3,0.801]
[1717435594319,0.55458343,3774.4,3774.3,4.55696577]
[1717435594514,0.55458343,3774.5,3774.4,2.64942]
[1717435594734,0.83302878,3774.7,3774.4,4.77168577]
[1717435594735,0.55458343,3774.6,3774.4,4.77168577]
[1717435594929,0.83302878,3774.7,3774.5,1.32126577]
[1717435595402,0.55442619,3774.6,3774.5,1.32126577]
[1717435595891,0.83302878,3774.7,3774.5,1.32126577]
[1717435596341,0.55439284,3774.6,3774.5,1.32126577]
[1717435599448,0.55439284,3774.7,3774.5,1.32126577]
[1717435599663,0.55439284,3774.6,3774.5,1.32126577]
[1717435600352,0.55439284,3774.7,3774.5,1.32126577]
[1717435611964,0.55439284,3774.6,3774.5,1.32126577]
[1717435612459,0.55439284,3774.7,3774.5,1.32126577]
[1717435612661,0.55439284,3774.7,3774.6,0.801]
[1717435612966,0.55439284,3774.7,3774.6,2.12226577]
[1717435614954,0.55439284,3774.8,3774.6,2.12226577]
[1717435615359,0.55439284,3774.7,3774.6,2.12226577]
[1717435616780,0.55439284,3774.8,3774.6,2.12226577]
[1717435617080,0.55439284,3774.9,3774.6,2.12226577]
[1717435617581,0.55439284,3774.9,3774.7,2.64921]
[1717435618481,0.55439284,3774.8,3774.7,2.64921]
[1717435618672,0.55439284,3774.9,3774.7,2.64921]
[1717435618868,0.83302878,3774.9,3774.7,2.64921]
[1717435619585,0.55414376,3774.8,3774.7,2.64921]
[1717435619966,0.55414376,3774.9,3774.7,2.64921]
[1717435620166,0.55414376,3774.9,3774.7,3.45021]
[1717435620381,0.55414376,3774.8,3774.7,3.45021]
[1717435620587,0.55414376,3774.8,3774.7,2.64921]
[1717435621576,0.83302878,3774.9,3774.7,2.64921]
[1717435623097,0.55433363,3774.8,3774.7,2.64921]
[1717435623271,0.83302878,3774.9,3774.7,2.64921]
[1717435623870,0.83302878,3774.8,3774.7,2.64921]
[1717435624987,0.20661729,3774.8,3774.7,2.64921]
[1717435625198,0.20661729,3774.8,3774.6,1.32126577]
[1717435625199,1.31750493,3774.8,3774.6,1.32126577]
[1717435625391,0.83234701,3774.7,3774.6,1.32126577]
[1717435625574,0.20668845,3774.7,3774.6,1.32126577]
[1717435625785,0.8323447,3774.7,3774.6,1.32126577]
[1717435626372,0.20676342,3774.7,3774.6,1.32126577]
[1717435626895,0.20676342,3774.7,3774.6,2.12226577]
[1717435627262,1.31765106,3774.7,3774.6,2.12226577]
[1717435627593,0.20676342,3774.7,3774.6,2.12226577]
[1717435627895,1.31768114,3774.7,3774.6,2.12226577]
[1717435628497,0.20676342,3774.7,3774.6,2.12226577]
[1717435629026,1.5946114,3774.7,3774.6,2.12226577]
[1717435629503,0.20676342,3774.7,3774.6,2.12226577]
[1717435630119,1.5946114,3774.7,3774.6,2.82925435]
[1717435630596,1.5946114,3774.7,3774.6,2.02825435]
[1717435630792,1.5946114,3774.7,3774.6,2.12226577]
[1717435631000,0.20676342,3774.7,3774.6,2.12226577]
[1717435633860,1.59719258,3774.7,3774.6,2.12226577]
[1717435634365,0.20676342,3774.7,3774.6,2.12226577]
[1717435634614,0.20676342,3774.7,3774.6,1.32126577]
[1717435634927,2.58646342,3774.7,3774.4,2.64942]
[1717435635103,0.63226127,3774.6,3774.0,2.64964]
[1717435635259,1.11257127,3774.2,3774.1,1.32126577]
[1717435635460,1.59740899,3774.2,3774.1,2.12226577]
[1717435636002,0.20676342,3774.2,3774.1,1.32126577]
[1717435636670,0.20676342,3774.2,3773.9,0.801]
[1717435636888,2.55656342,3774.1,3773.9,1.32126577]
[1717435637200,0.20676342,3774.0,3773.9,1.32126577]